Cogmind - Beta 14 @@@ ROGUE MODE // 2024.12.10 @ 18:56:20 Player: Two Silent Monoliths Result: Destroyed by G-47 Trooper with Particle Gun Performance ------------- Evolutions (0) 0 Regions Visited (2) 400 Robots Destroyed (16) 80 Value Destroyed (277) 277 Prototype IDs (0) 0 Alien Tech Used (0) 0 Bonus (35) 35 TOTAL SCORE: 792 Bonus ------- Follower Combat Kills 35 Cogmind --------- Core Integrity 0/250 Matter 229/300 Energy 125/125 System Corruption 17% Temperature Cool (15) Movement Flying (120) Ox1 Location -10/Mines Parts ------- > --- POWER (1) -------- Light Ion Engine > --- PROPULSION (2) --- Flight Unit (fused) > --- UTILITY (2) ------ (None) > --- WEAPON (2) ------- Rocket Launcher > --- INVENTORY (5) ---- Light Deuterium Engine Small Storage Unit EM Pulse Gun Assault Rifle Mining Laser Peak State ------------ > --- POWER ------------ Light Deuterium Engine > --- PROPULSION ------- Flight Unit Flight Unit > --- UTILITY ---------- (None) > --- WEAPON ----------- Beam Rifle Rocket Launcher > --- INVENTORY -------- Light Ion Engine Small Storage Unit EM Pulse Gun Assault Rifle Mining Laser [Rating: 9] Favorites ----------- Power Light Ion Engine Engine Light Ion Engine Propulsion Aluminum Leg Leg Aluminum Leg Flight Unit Flight Unit Utility Small Storage Unit Storage Small Storage Unit Protection Light Armor Plating Weapon Assault Rifle Energy Gun Beam Rifle Ballistic Gun Assault Rifle Launcher Grenade Launcher Special Weapon Mining Laser Build | -11 -10 -10 ------- Run | Yrd Mat Min Slots Evolved . | . . . Power . | . . . Propulsion . | . . . Utility . | . . . Weapon . | . . . Parts Attached 18 | 5 2 11 Power 3 | 1 . 2 Engine 3 | 1 . 2 Core . | . . . Reactor . | . . . Propulsion 4 | 2 . 2 Treads . | . . . Leg 2 | 2 . . Wheel . | . . . Hover . | . . . Flight 2 | . . 2 Utility 2 | . 1 1 Device . | . . . Storage 1 | . 1 . Processor . | . . . Hackware . | . . . Protection 1 | . . 1 Artifact . | . . . Weapon 9 | 2 1 6 Energy Gun 2 | 1 . 1 Energy Cannon . | . . . Ballistic Gun 2 | 1 . 1 Ballistic Cannon . | . . . Launcher 3 | . 1 2 Special Weapon 2 | . . 2 Impact Weapon . | . . . Slashing Weapon . | . . . Piercing Weapon . | . . . Special Melee Weapon . | . . . Unidentified Prototypes . | . . . Parts Lost 7 | . . 7 Power 1 | . . 1 Propulsion 2 | . . 2 Utility 2 | . . 2 Weapon 2 | . . 2 Highest Loss Streak 5 | . . 5 To Critical Strikes . | . . . Average Slot Usage (%) 71 | . 76 69 Engine 12 | . 14 11 Leg 15 | . 28 12 Flight 1 | . . 2 Storage 9 | . 5 10 Protection 5 | . . 6 Energy Gun 3 | . 3 2 Ballistic Gun 16 | . 14 16 Launcher 5 | . 10 4 Special Weapon 1 | . . 1 Peak Build Rating 9 | 5 6 9 Average Rating 5 | 3 5 6 On Entrance 3 | . 5 6 Naked Turns . | . . . Heaviest Build 16 | 7 13 16 Greatest Support 20 | 20 20 20 Greatest Overweight (x) 3 | . . 3 Average Overweight (x) . | . . . Largest Inventory Capacity 8 | 5 8 8 Average Capacity 6 | 5 6 7 Most Carried 6 | 5 4 6 Average Carried 4 | 2 2 4 Final Capacity 8 | 5 8 5 Final Carried 5 | 2 3 5 Class Distribution -------------------- 95% | Mutant 4% | Scavenger-Mutant Dominant Class ---------------- Mutant | -10/Materials Mutant | -10/Mines Resources | -11 -10 -10 ----------- Run | Yrd Mat Min Matter Collected 507 | 237 101 169 Remotely . | . . . Salvage Created 338 | . 184 154 Parts 30 | . 22 8 Haulers Intercepted . | . . . Recyclers Shooed . | . . . Parts Field Recycled . | . . . Retrieved Matter . | . . . Parts Self-Destructed . | . . . Prevented . | . . . Kills | -11 -10 -10 ------- Run | Yrd Mat Min Combat Hostiles Destroyed 13 | . 8 5 Guns 3 | . 1 2 Cannons 1 | . . 1 AOE 9 | . 7 2 Classes Destroyed 6 | . 4 2 Builder 2 | . 2 . Recycler 3 | . 1 2 Swarmer 6 | . 6 . Grunt 4 | . 2 2 Demolisher 1 | . . 1 Assembled 2 | . . 2 Best Kill Streak 6 | . 6 3 Combat Bots Only 6 | . 6 3 Max Kills in Single Turn 3 | . 3 2 Gunslinging . | . . . Exploded 3 | . 3 1 Melee . | . . . Uniques/NPCs Destroyed . | . . . Combat | -11 -10 -10 -------- Run | Yrd Mat Min Hostile Shots Fired 68 | . 24 44 Missed 21 | . 7 14 Damage Taken 1012 | . 187 825 Core 258 | . 14 244 Absorbed by Shields . | . . . Core Remaining (%) 100 | 100 . . Volleys Fired 46 | . 10 36 Largest 2 | . 2 2 Hottest 123 | . 50 123 Shots Fired 58 | . 15 43 Gun 38 | . 10 28 Cannon . | . . . Launcher 13 | . 5 8 Special 7 | . . 7 Kinetic 36 | . 10 26 Thermal 9 | . . 9 Explosive 13 | . 5 8 Electromagnetic . | . . . Robot Hit Streak 4 | . 2 4 Robot Miss Streak 4 | . 4 4 Penetration Max . | . . . Secondary Targets . | . . . Shots Hit Robots 25 | . 5 20 Core Hits 29 | . 13 16 Critical Kills . | . . . Critical Parts Destroyed . | . . . Critical Strikes . | . . . Melee Attacks . | . . . Impact . | . . . Slashing . | . . . Piercing . | . . . Sneak Attacks . | . . . Combat Hostiles . | . . . Follow-up Attacks . | . . . Damage Inflicted 1321 | . 515 806 Guns 258 | . 24 234 Cannons . | . . . Explosions 1021 | . 491 530 Melee . | . . . Ramming 18 | . . 18 Kinetic 244 | . 24 220 Thermal 38 | . . 38 Explosive 1021 | . 491 530 Electromagnetic . | . . . Impact . | . . . Slashing . | . . . Piercing . | . . . Highest Corruption 17 | . 1 17 Average Corruption 5 | . 1 5 Corruption Purged . | . . . Corruption Blocked . | . . . Effects 12 | . . 12 Message Errors 1 | . . 1 Heat Flow Errors 2 | . . 2 Energy Discharges 3 | . . 3 Parts Rejected 1 | . . 1 Parts Fused 1 | . . 1 Data Loss (minor) 2 | . . 2 Data Loss (major) 1 | . . 1 Weapon Failures 1 | . . 1 Overload Shots . | . . . Overflow Damage 35 | . 9 26 Projectiles . | . . . Explosions 35 | . 9 26 Melee . | . . . Knockbacks . | . . . Impact . | . . . Kinetic . | . . . Secondary . | . . . Self-Inflicted Damage 162 | . 44 118 Shots 6 | . 2 4 Rammed 5 | . . 5 Targets Rammed 6 | . . 6 Kicked 1 | . . 1 Crushed . | . . . Highest Temperature 281 | . 8 281 Average Temperature 46 | . 6 47 Received Heat Transfer 114 | . 18 96 Siege Activations . | . . . Robots Corrupted . | . . . Combat Hostiles . | . . . Parts Fried . | . . . Impact Corruptions . | . . . Robots Melted . | . . . Combat Hostiles . | . . . Parts Melted . | . . . Heat Transferred 87 | . . 87 Parts Sabotaged . | . . . Parts Stolen . | . . . Parts Stripped . | . . . Power Chain Reactions . | . . . Alert | -11 -10 -10 ------- Run | Yrd Mat Min Peak Influence 248 | . 248 170 Initial 96 | . . 96 Average 104 | . 159 98 Maximum Alert Level 1 | . 1 . Low Security (%) 89 | 100 51 100 Level 1 10 | . 48 . Level 2 . | . . . Level 3 . | . . . Level 4 . | . . . Level 5 . | . . . High Security . | . . . Max Security . | . . . Squads Dispatched 1 | . 1 . Investigation . | . . . Extermination . | . . . Reinforcement 1 | . 1 . Assault . | . . . Garrison . | . . . Intercept . | . . . Searches Triggered . | . . . Construction Impeded . | . . . Haulers Reinforced . | . . . Active Scanning Responses . | . . . Cargo Convoy Interrupts . | . . . Stealth | -11 -10 -10 --------- Run | Yrd Mat Min Distress Signals 1 | . 1 . Communications Jammed . | . . . Distress Signals . | . . . Times Spotted 20 | . 9 11 Peak Tracking Total 7 | . 7 7 Tactical Retreats 1 | . 1 . Traps | -11 -10 -10 ------- Run | Yrd Mat Min Traps Triggered 1 | . 1 . Indirectly . | . . . Trap Hack Attempts . | . . . Triggered . | . . . Disarmed . | . . . Reprogrammed . | . . . Reused . | . . . Traps Extracted . | . . . Installed . | . . . Triggered . | . . . Machines | -11 -10 -10 ---------- Run | Yrd Mat Min Machines Disabled . | . . . Max in Single Turn . | . . . Machines Repaired . | . . . Machines Dismantled . | . . . Machines Sabotaged . | . . . Overloaded Fab Kills . | . . . Hacking | -11 -10 -10 --------- Run | Yrd Mat Min Machines Accessed . | . . . Terminals . | . . . Fabricators . | . . . Repair Stations . | . . . Recycling Units . | . . . Scanalyzers . | . . . Garrison Access . | . . . Total Hacks . | . . . Successful . | . . . Failed . | . . . Catastrophic . | . . . Database Lockouts . | . . . Manual . | . . . Terminals . | . . . Fabricators . | . . . Repair Stations . | . . . Recycling Units . | . . . Scanalyzers . | . . . Garrison Access . | . . . Terminal Hacks . | . . . Fabricator Hacks . | . . . Repair Station Hacks . | . . . Recycling Unit Hacks . | . . . Scanalyzer . | . . . Garrison Access Hacks . | . . . Unauthorized Hacks . | . . . Terminals . | . . . Fabricators . | . . . Repair Stations . | . . . Recycling Units . | . . . Scanalyzers . | . . . Garrison Access . | . . . Data Cores Recovered . | . . . Used . | . . . Hacking Detections . | . . . Full Trace Events . | . . . Feedback Events . | . . . Feedback Blocked . | . . . Robot Schematics Acquired . | . . . Robots Built . | . . . Authchips . | . . . Time . | . . . Total Robot Build Rating . | . . . Part Schematics Acquired . | . . . Parts Built . | . . . Authchips . | . . . Time . | . . . Total Part Build Rating . | . . . Parts Repaired . | . . . Time . | . . . Parts Recycled . | . . . Recycled Matter . | . . . Retrieved Matter . | . . . Retrieved Components . | . . . Parts Scanalyzed . | . . . Part Schematics Acquired . | . . . Parts Damaged . | . . . Bothacking | -11 -10 -10 ------------ Run | Yrd Mat Min Used RIF Installer . | . . . Robots Hacked . | . . . Non-combat . | . . . Combat . | . . . Robot Hacks Applied . | . . . Relay Couplers Released . | . . . Fabnet Peak Effective % . | . . . Robots Rewired . | . . . Allies Hacked . | . . . Hacks Repelled . | . . . Allies | -11 -10 -10 -------- Run | Yrd Mat Min Total Allies 1 | . . 1 Largest Group 1 | . . 1 Highest-Rated Group 31 | . . 31 Highest-Rated Ally 31 | . . 31 Total Orders . | . . . Ally Attacks 6 | . . 6 Total Damage 64 | . . 64 Kills 1 | . . 1 Allies Corrupted . | . . . Allies Melted . | . . . Intel | -11 -10 -10 ------- Run | Yrd Mat Min Robot Analysis Total . | . . . Derelict Logs Recovered . | . . . Drone Launches . | . . . Drone Recoveries . | . . . Exploration | -11 -10 -10 ------------- Run | Yrd Mat Min Turns Passed 895 | 53 184 658 Spaces Moved 533 | 42 129 362 Core 76 | 12 . 64 Treads . | . . . Legs 409 | 30 129 250 Wheels . | . . . Hover . | . . . Flight 48 | . . 48 Fastest Speed 37 | 50 120 37 Average Speed 137 | 100 120 148 Slowest Speed 200 | 120 120 200 Overloaded Moves . | . . . Propulsion Burnouts . | . . . Robots Hopped . | . . . Cave-ins Triggered . | . . . Exploration Rate (%) 26 | 3 24 51 Regions Visited 2 Branch Regions 1 Pre-discovered Areas . | . . . Known Exits Taken . | . . . Unknown Exits Taken 2 | 1 1 . Scrap Searched . | . . . Spaces Dug 1 | . . 1 Terrain Destroyed 102 | . 26 76 Melee . | . . . Projectile 6 | . . 6 AOE 96 | . 26 70 Terrain Rammed . | . . . Walls Destroyed . | . . . Machines Disabled . | . . . Actions | -11 -10 -10 --------- Run | Yrd Mat Min Total 616 | 53 142 421 Wait . | . . . Move 531 | 41 128 362 Hop . | . . . Pick Up 14 | 7 2 5 Fast Attach 3 | . . 3 Attach 9 | 5 1 3 Detach . | . . . Swap 6 | . 1 5 Drop 1 | . . 1 Fire 46 | . 10 36 Melee . | . . . Ram 5 | . . 5 Kick 1 | . . 1 Crush . | . . . Escape Stasis . | . . . Rewire . | . . . Trap . | . . . Miscellaneous . | . . . Route ------- -11/Scrapyard -10/Materials -10/Mines History --------- Turn | Location | Event 18 | -11/Scrapyard | Discovered new exit (range 14) 54 | -11/Scrapyard | Entered Materials 217 | -10/Materials | Discovered new exit (range 15) 238 | -10/Materials | Entered Mines 251 | -10/Mines | Received a Mining Laser from a helpful Derelict 316 | -10/Mines | Build established: Mutant 397 | -10/Mines | Joined a pair of Derelicts in attacking an 0b10 outpost 675 | -10/Mines | Assembled infested the area 717 | -10/Mines | System corruption reached 10% 739 | -10/Mines | Core integrity fell below 50% 754 | -10/Mines | Received a Rocket Launcher from a helpful Derelict 759 | -10/Mines | Lost 5 parts (1p1n2u1w) 886 | -10/Mines | Core integrity fell below 20% 896 | -10/Mines | Destroyed by G-47 Trooper with Particle Gun Last Messages --------------- Acquired Lgt. Deuterium Engine. N2EDKR>ZKB3R#SGJR0ILXU8Z< 5MWWTU55B Acquired 10 matter. K-01 Serf collects debris. The unstable cave ceiling collapses. K-01 Serf collects debris. Acquired Flight Unit. Acquired 12 matter. Acquired 8 matter. Dropped Beam Rifle. System corrupted: Flight Unit fused. R-06 Scavenger destroyed. Destroyed Ion Engine. G-34 Mercenary destroyed. Destroyed Lgt. Nuclear Core. R-06 Scavenger destroyed. The unstable cave ceiling collapses. Flight Unit destroyed. The unstable cave ceiling collapses. Destroyed Aluminum Leg. Map ----- +----------------------------------------------------+ | ?????????????????????????????????????????????????? | | ?????????????????????????????????????????????????? | | ??????????#####??????????????????????????????????? | | ?????????# ##?????????????????????????????????? | | ????????? ??????????????????????????????????? | | ????????? ???????????????????????????????????? | | ???????## ????????????????????????????????????? | | ???????# #?????????????????????????????????????? | | ???????# #??????????????????????????????????????? | | ??????## #??????????????????????????????????????? | | ?###### #??????????????????????????????????????? | | ## #???????????????????????????????????????? | | ##??????????????????????????????????????? | | [ ##?????????????????????????????????????? | | [ #???????????#?????????????????????????? | | ###### #??????????# ?????????????????????????? | | #????## ##?????#### ?????????????????????????? | | ??????# ####??? ??????????????????????????? | | ??????## [ ##?? ??????????????????????????? | | ???????## #?? ??????????????????????????? | | ????????# #??# #??????????????????????????? | | #??????# ## ##??# #??????????????????????????? | | #??????# #### ##???# #??????????????????????????? | | #??????# ???# #????# #######????????????????????? | | #??????# #### ###### #????????????????????? | | #??????# @ #????????????????????? | | ???????############# #??????????????????? | | ???????????????????### #??????????????????? | | ?????????????????????# #??????????????????? | | ????????????????????# g #??????????????????? | | ????????????????????# #??????????????????? | | ????????????????????## = #??????????????????? | | ????????????????????? =! !t??????????????????? | | ????????????????????# = ##?????????????????? | | ????????????????????## ##??????????????????? | | ?????????????????????## # ##???????????????????? | | ??????????????????????##?# #????????????????????? | | ?????????????????????????? #????????????????????? | | ?????????????????????????? #????????????????????? | | ?????????????????????????? #????????????????????? | | ?????????????????????????? ?????????????????????? | | ?######??????????????????????????????????????????? | | ##"[|"##?????????????????????????????????????????? | | #""!!""#?????????????????????????????????????????? | | #% %#?????????????????????????????????????????? | | ## ##?????????????????????????????????????????? | | ###++###?????????????????????????????????????????? | | # ##????????????????????????????????????????? | | ##???????????????????????????????????????? | | #### #???????????????????????????????????????? | +----------------------------------------------------+ Best States ------------- Heat Dissipation 25 Energy Generation 14 Energy Capacity 140 Matter Stores 300 Matter Capacity 300 Sight Range 16 Terrain Scan Density 10 Armor Coverage 150 Evasion (%) 62 Item Schematics ----------------- None Robot Schematics ------------------ None Fabricated ------------ Nothing Alien Tech Used ----------------- None Achievements -------------- None Challenges ------------ None Game ------ Seed SpacefoldRocketSink Manual? 0 Play Time 00:09:45 Cumulative 3.7 hours Start 2024.12.10 @ 18:48:11 End 2024.12.10 @ 18:56:20 Sessions 1 Manual Loads 0 Difficulty Rogue Special Mode None Game No. 6 Rogue 6 Adventurer 0 Explorer 0 Win Type - Total 0 Types 0/0/0/0/0/0/0/0/0 Lore% 3 Gallery% 9 Achievement% 12 Wizard Run 0 Options --------- Layout 1 ASCII 0 Keyboard 0 Movement Arrows Keybinds 0 Fullscreen 1 Font 24/Smallcaps Map View 50x35 Zoom Use 19% Tactical HUD 0 Map Filters NONE Filters NONE Steam 1 RUN: 389e7122-48b3-4c1b-8b50-a89931679df9